[Event "FIDE WSCC 65 2022"]
[Site "Assisi"]
[Date "2022.11.24"]
[Round "9.12"]
[White "De Jong, Tom"]
[Black "Madebrink, Lars"]
[Result "1/2-1/2"]
[ECO "B01"]
[WhiteElo "2216"]
[BlackElo "2084"]
[Annotator "TA"]
[PlyCount "144"]
[EventDate "2022.11.14"]
[EventType "swiss"]
[EventCountry "ITA"]
[SourceTitle "playchess.com"]
[Source "ChessBase"]
[SourceQuality "1"]
[TimeControl "40/5400+30:1800+30"]

{[%evp 21,144,36,61,25,27,17,46,16,43,38,47,56,54,33,42,48,40,-44,-42,-48,0,0,0,-18,-5,-2,-6,-24,-25,-74,-71,-83,-79,-79,-72,-166,-168,-172,-176,-169,-169,-181,-158,-186,-147,-150,-153,-154,-87,-83,-52,-52,-52,-52,-52,-52,-52,-52,-52,-52,-52,-52,-52,-75,-75,-75,-52,-95,-52,-95,-52,-95,-23,-95,-95,-95,-95,-95,-95,-95,-81,-95,-95,-95,-95,-95,-5,-50,-50,-50,-50,-66,0,0,0,0,0,0,0,0,0,0,0,0,0,0,0,0,0,0,0,0,0,0,0,-5,0,0,0,0,0,0,0,0,0]} 1. e4 {[%emt 0:00:08]} d5 {[%emt 0:00:07]} 2. exd5 {[%emt 0:00:30]} Nf6 {[%emt 0:00:06]} 3. d4 {[%emt 0:01:18]} Bg4 {[%emt 0:01:14]} 4. Nf3 {[%emt 0:03:12]} Nxd5 {[%emt 0:00:29]} 5. c4 {[%emt 0:04:19]} Nb6 {[%emt 0:00:13]} 6. Be2 {[%emt 0:01:24]} e6 {[%emt 0:00:37]} 7. Nc3 {[%emt 0:02:22]} Be7 {[%emt 0:00:45]} 8. h3 {[%emt 0:04:00]} Bh5 {[%emt 0:02:19]} 9. Be3 {[%emt 0:12:20]} Nc6 {[%emt 0:05:27]} 10. O-O {[%emt 0:08:36]} O-O {[%emt 0:02:41]} 11. b3 {[%emt 0:01:33]} a5 {[%emt 0:05:53][%cal Oa5a4]} 12. a4 {[%emt 0:17:47] [#] B01: Scandinavian Defence.} Nd7 $146 {[%emt 0:10:53]} ({Predecessor:} 12... Bg6 13. Bd3 Bxd3 14. Qxd3 Nb4 15. Qe2 Nc8 16. Rad1 c6 17. Rd2 Bd6 18. Ne4 Bc7 19. Nfg5 h6 {½-½ (40) Kutuzovic,B (2405)-Zelcic,R (2495) Tucepi 1996}) 13. Nb5 {[%emt 0:03:22]} Bf6 {[%emt 0:06:13]} (13... Nb4 {looks sharper.} 14. Ne5 Bxe2 15. Qxe2 c6) 14. Rc1 {[%emt 0:01:22] White is slightly better.} Bg6 {[%emt 0:07:54]} 15. Bf4 {[%emt 0:03:15]} e5 {[%emt 0:05:06]} 16. dxe5 {[%emt 0:00:46]} Ncxe5 {[%emt 0:00:16]} 17. Nxe5 {[%emt 0:00:57]} Nxe5 {[%emt 0:00:08]} 18. Qxd8 {[%emt 0:12:37]} Raxd8 {[%emt 0:00:44]} 19. Be3 {[%emt 0:09:41]} (19. Nxc7 $14 Nd3 20. Bxd3 Rxd3 21. Nd5) 19... c6 $15 {[%emt 0:01:07][%cal Oe5d3] [#] Threatens to win with ...Nd3!} 20. Nd4 {[%emt 0:06:38]} Ng4 {[%emt 0:17:42]} 21. Bxg4 $11 {[%emt 0:01:48] aiming for Rfd1.} Bxd4 {[%emt 0:00:16]} 22. Bf4 {[%emt 0:01:50]} Bb2 {[%emt 0:05:34]} 23. Rcd1 {[%emt 0:00:08]} Bc3 {[%emt 0:26:16]} 24. Bd6 {[%emt 0:00:59]} Rfe8 {[%emt 0:00:00]} 25. c5 {[%emt 0:00:19]} (25. Bf4 $11) 25... Be4 {[%emt 0:00:00]} 26. Bf3 {[%emt 0:00:46]} Bxf3 {[%emt 0:00:00]} 27. gxf3 {[%emt 0:00:02]} Bb4 {[%emt 0:00:00]} 28. Rd3 {[%emt 0:00:10]} (28. Bc7 $17 {keeps fighting.} Rxd1 29. Rxd1) 28... Bxc5 $19 {[%emt 0:00:00]} 29. Rfd1 {[%emt 0:00:17]} Bb6 {[%emt 0:00:00]} 30. Kf1 {[%emt 0:00:36]} f6 {[%emt 0:00:00]} 31. f4 {[%emt 0:00:39]} f5 {[%emt 0:00:00]} 32. b4 {[%emt 0:00:39]} axb4 {[%emt 0:00:00]} 33. Bxb4 {[%emt 0:00:04]} Rxd3 {[%emt 0:00:00]} 34. Rxd3 {[%emt 0:00:01][%mdl 4096] Endgame [#] KRB-KRB} Re4 {[%emt 0:00:00]} (34... Rd8 $142 $1 {[%cal Rd8d3]} 35. Rb3 Rd7) 35. Rb3 $17 {[%emt 0:01:32]} Bc7 {[%emt 0:00:00] Prevents Bd6.} 36. Bc3 $1 {[%emt 0:01:20]} b6 {[%emt 0:00:00]} ({But not} 36... Rxf4 37. Rxb7 Bd6 38. Rxg7+ (38. Bxg7 Rxa4 39. Bf6 h5 $15) 38... Kf8 39. a5 $11 (39. Rxh7 Rxa4 40. h4 Rc4 $11)) 37. Be5 $1 {[%emt 0:00:21]} Bxe5 {[%emt 0:00:35]} 38. fxe5 {[%emt 0:00:02]} Rxa4 {[%emt 0:00:13] Hoping for ...b5.} 39. Rxb6 $15 {[%emt 0:00:08] KR-KR} Re4 {[%emt 0:00:10]} 40. Rxc6 {[%emt 0:00:15]} Rxe5 {[%emt 0:00:22]} 41. Kg2 {[%emt 0:30:13]} Kf7 {[%emt 0:30:27]} 42. Ra6 {[%emt 0:00:21]} Re6 {[%emt 0:02:16]} 43. Ra7+ {[%emt 0:00:59]} Kf6 {[%emt 0:00:47]} 44. Rb7 {[%emt 0:00:04]} Ra6 {[%emt 0:00:22]} 45. Rc7 {[%emt 0:00:09]} h5 {[%emt 0:01:26]} 46. Rb7 {[%emt 0:00:06]} h4 {[%emt 0:00:48]} (46... Ra4 $17 47. Rb6+ Kg5) 47. Rb8 {[%emt 0:00:44]} (47. Rb4 $1 $11) 47... Kg5 {[%emt 0:00:00]} 48. Rb7 {[%emt 0:00:00]} g6 {[%emt 0:00:00]} 49. Rh7 {[%emt 0:00:00]} Ra4 {[%emt 0:00:00]} 50. Rf7 {[%emt 0:00:00]} Kf4 {[%emt 0:00:00]} 51. Rh7 {[%emt 0:00:00]} g5 {[%emt 0:00:00]} 52. Rh8 {[%emt 0:00:00]} Ra3 {[%emt 0:00:00]} 53. Rb8 {[%emt 0:00:00]} g4 {[%emt 0:00:00]} ({Black should try} 53... Rd3 $17 54. Rb4+ Ke5 55. Rb5+ Ke4 56. Rb4+ Rd4) 54. Rb4+ {[%emt 0:00:00]} Kg5 {[%emt 0:00:00]} 55. hxg4 {[%emt 0:00:00]} h3+ $1 {[%emt 0:00:00]} 56. Kh2 {[%emt 0:00:00]} fxg4 {[%emt 0:00:00]} (56... f4 $1 $15) 57. Rb8 {[%emt 0:01:08] The position is equal.} Ra5 {[%emt 0:00:00]} 58. Kg3 {[%emt 0:04:30]} Ra3+ {[%emt 0:00:00]} 59. Kh2 {[%emt 0:00:01]} Rf3 {[%emt 0:00:00]} 60. Kg1 {[%emt 0:00:37]} Rf5 {[%emt 0:00:00]} 61. Ra8 {[%emt 0:00:44]} Re5 {[%emt 0:00:00]} 62. Kh2 {[%emt 0:01:48]} Rf5 {[%emt 0:00:35]} 63. Kg1 {[%emt 0:00:03]} Rd5 {[%emt 0:01:25]} 64. Kh2 {[%emt 0:01:12]} Rd1 {[%emt 0:00:34]} 65. Rg8+ {[%emt 0:01:00]} Kf4 {[%emt 0:00:13]} 66. Rf8+ {[%emt 0:00:55]} Ke4 {[%emt 0:00:10]} 67. Rf7 {[%emt 0:00:35]} Rd3 {[%emt 0:01:34]} 68. Kg1 {[%emt 0:00:32]} Rf3 {[%emt 0:00:54]} 69. Re7+ {[%emt 0:00:14]} Kd3 {[%emt 0:00:21]} 70. Rd7+ {[%emt 0:00:15]} Kc2 {[%emt 0:00:11]} 71. Rd4 {[%emt 0:00:18]} h2+ {[%emt 0:01:01]} 72. Kxh2 {[%emt 0:00:12] Black must now prevent Kg2.} Rxf2+ {[%emt 0:00:07] White happily takes the draw.   Weighted Error Value: White=0.18 (very precise) /Black=0.17 (very precise)} 1/2-1/2

[Event "FIDE WSCC 65 2022"]
[Site "Assisi"]
[Date "2022.11.24"]
[Round "9.13"]
[White "Chan, Peng Kong"]
[Black "Koehler, Gerhard"]
[Result "1/2-1/2"]
[ECO "A37"]
[WhiteElo "2149"]
[BlackElo "2198"]
[Annotator "TA"]
[PlyCount "82"]
[EventDate "2022.11.14"]
[EventType "swiss"]
[EventCountry "ITA"]
[SourceTitle "playchess.com"]
[Source "ChessBase"]
[SourceQuality "1"]
[TimeControl "40/5400+30:1800+30"]

{[%evp 21,82,37,28,43,57,19,28,20,18,13,34,16,19,23,54,45,57,56,56,55,76,47,49,32,45,32,34,29,44,20,32,16,12,10,8,8,9,0,0,-20,-19,-40,0,-9,0,-43,0,0,17,19,19,0,7,-14,-3,-15,0,0,0,0,0,0,1]} 1. Nf3 {[%emt 0:00:05]} c5 {[%emt 0:00:20]} 2. c4 {[%emt 0:00:18]} g6 {[%emt 0:00:25]} 3. Nc3 {[%emt 0:00:26]} Bg7 {[%emt 0:00:10]} 4. g3 {[%emt 0:00:13]} Nc6 {[%emt 0:00:35]} 5. Bg2 {[%emt 0:00:05]} d6 {[%emt 0:00:51]} 6. a3 {[%emt 0:03:14]} e5 {[%emt 0:02:56]} 7. O-O {[%emt 0:01:21]} Nge7 {[%emt 0:01:47]} 8. b4 {[%emt 0:05:41]} O-O {[%emt 0:06:05]} 9. Rb1 {[%emt 0:04:40]} h6 {[%emt 0:10:52]} 10. d3 {[%emt 0:00:55]} f5 {[%emt 0:05:03]} 11. Bd2 {[%emt 0:00:51]} Rb8 {[%emt 0:07:04]} 12. b5 {[%emt 0:06:30] A37: Symmetrical English vs ...g6: 4 Bg2 Bg7 5 Nf3.} Nd4 {[%emt 0:12:38]} 13. e3 {[%emt 0:18:02]} Ne6 {[%emt 0:08:07] [#]} 14. Qa4 $146 {[%emt 0:06:27] White has an edge.} ({Predecessor:} 14. Ne1 b6 15. f4 Bb7 16. Bxb7 Rxb7 17. Qf3 Rd7 18. Nd5 Kh7 19. Nc2 Nc7 20. e4 {1-0 (47) Janik,G-Klient,G Poland 1999}) 14... Ra8 {[%emt 0:03:01]} 15. Ne1 {[%emt 0:01:56]} Nc7 {[%emt 0:02:40]} 16. Qb3 {[%emt 0:03:33]} Kh7 {[%emt 0:01:44]} 17. f4 {[%emt 0:06:16]} Ng8 {[%emt 0:03:47]} 18. Nf3 {[%emt 0:00:10]} exf4 {[%emt 0:04:21]} 19. exf4 {[%emt 0:05:02]} Ne6 {[%emt 0:00:45]} 20. Rbe1 {[%emt 0:04:32]} Nf6 {[%emt 0:01:11]} 21. Kh1 {[%emt 0:00:29] White is more active.} Bd7 {[%emt 0:01:58]} 22. Re2 {[%emt 0:00:22]} Qc7 {[%emt 0:00:26]} 23. Rfe1 {[%emt 0:00:49]} Rae8 {[%emt 0:00:02]} 24. a4 {[%emt 0:00:39]} Nd8 {[%emt 0:04:43]} 25. Be3 {[%emt 0:00:51]} ({Of course not} 25. Re7 Rxe7 26. Rxe7 Ne6 $15) 25... Be6 {[%emt 0:00:46]} 26. Bg1 {[%emt 0:00:19]} Bf7 {[%emt 0:00:37]} 27. Nd2 {[%emt 0:05:39]} Rxe2 {[%emt 0:00:49]} 28. Rxe2 {[%emt 0:00:02]} Ne6 {[%emt 0:00:26]} 29. Nf3 {[%emt 0:01:39]} Re8 {[%emt 0:03:09]} 30. Rb2 {[%emt 0:05:01]} Qa5 {[%emt 0:03:04]} 31. Re2 {[%emt 0:02:11]} Qd8 {[%emt 0:02:19]} (31... Ng4 {keeps more tension.} 32. Nd5 Nd4 33. Nxd4 Rxe2 34. Nxe2 Qe1) 32. Qd1 {[%emt 0:00:28]} Qa5 {[%emt 0:01:18]} 33. Qb3 {[%emt 0:01:07]} Qc7 {[%emt 0:01:10]} (33... Ng4 {looks sharper.} 34. Nd5 Nd4 35. Nxd4 Rxe2 36. Nxe2 Qe1) 34. Qd1 {[%emt 0:00:06] The position is equal.} Rd8 {[%emt 0:00:30]} 35. Qe1 {[%emt 0:00:18]} Re8 {[%emt 0:01:12]} 36. Nd5 {[%emt 0:01:17]} Qd8 {[%emt 0:00:14]} 37. Nxf6+ {[%emt 0:04:35]} Bxf6 {[%emt 0:00:30]} 38. a5 {[%emt 0:00:20]} Ng7 {[%emt 0:00:59][%cal Be6g7,Bg7e8,Be8c7][%mdl 32]} 39. Rxe8 {[%emt 0:00:40]} Nxe8 {[%emt 0:00:16]} 40. Be3 {[%emt 0:00:40]} Kg7 {[%emt 0:01:14]} 41. Bd2 {[%emt 0:31:32]} Nc7 {[%emt 0:33:44] Weighted Error Value: White=0.12 (very precise) /Black=0.09 (flawless)} 1/2-1/2

[Event "FIDE WSCC 65 2022"]
[Site "Assisi"]
[Date "2022.11.24"]
[Round "9.14"]
[White "Pomes Marcet, Joan"]
[Black "Peter, Steven"]
[Result "1-0"]
[ECO "B14"]
[WhiteElo "2197"]
[BlackElo "2035"]
[Annotator "TA"]
[PlyCount "79"]
[EventDate "2022.11.14"]
[EventType "swiss"]
[EventCountry "ITA"]
[SourceTitle "playchess.com"]
[Source "ChessBase"]
[SourceQuality "1"]
[TimeControl "40/5400+30:1800+30"]

{[%evp 21,79,11,27,14,25,21,35,8,12,12,20,5,63,30,31,29,23,23,110,50,100,110,96,46,58,58,39,34,89,81,81,41,22,0,26,27,30,0,67,17,22,14,7,6,77,74,78,75,172,171,270,273,260,282,268,234,29976,29977,29975,11668]} 1. d4 {[%emt 0:00:03]} d5 {[%emt 0:00:07]} 2. c4 {[%emt 0:00:08]} e6 {[%emt 0:00:06]} 3. Nc3 {[%emt 0:00:14]} c5 {[%emt 0:00:27]} 4. e3 {[%emt 0:02:24]} Nf6 {[%emt 0:00:06]} 5. Nf3 {[%emt 0:00:52]} a6 {[%emt 0:00:26]} 6. cxd5 {[%emt 0:09:05]} exd5 {[%emt 0:00:09]} 7. Be2 {[%emt 0:03:05]} Nc6 {[%emt 0:05:10]} 8. O-O {[%emt 0:08:32]} cxd4 {[%emt 0:00:51]} 9. exd4 {[%emt 0:04:28]} Be7 {[%emt 0:13:23]} 10. Bg5 {[%emt 0:06:46]} O-O {[%emt 0:01:48]} 11. Ne5 {[%emt 0:05:40]} Be6 {[%emt 0:02:13]} (11... Re8 {feels hotter.} 12. Rc1 Bf5 13. Bf3 h6) 12. Nxc6 {[%emt 0:04:06] B14: Caro-Kann: Panov-Botvinnik Attack with 5...e6 and 5...g6.} bxc6 {[%emt 0:00:03] [#]} 13. Na4 $146 {[%emt 0:00:51]} ({Predecessor:} 13. b3 Qc7 14. Qd3 a5 15. Bh4 Rac8 16. Bg3 Qd7 17. Na4 Qa7 18. Be5 Bd7 19. Qa6 Qa8 {1-0 (38) Gara,T (2245)-Huynh Mai Phuong,D Oropesa del Mar 1998}) 13... h6 {[%emt 0:09:00]} 14. Be3 {[%emt 0:05:11] White is slightly better.} a5 {[%emt 0:08:04]} 15. Rc1 {[%emt 0:01:00]} Bd7 {[%emt 0:00:01]} 16. Nc5 {[%emt 0:05:30]} Be8 {[%emt 0:00:36]} (16... Bxc5 $11 17. Rxc5 Qb6) 17. Bf4 {[%emt 0:03:30]} Ne4 {[%emt 0:03:32]} 18. Nxe4 {[%emt 0:00:55]} dxe4 {[%emt 0:00:11]} 19. Bc4 {[%emt 0:00:50]} Qb6 {[%emt 0:04:08]} (19... Kh8 $11 {keeps the balance.}) 20. Rc3 {[%emt 0:04:59]} (20. Qe2 $16) 20... Bd7 {[%emt 0:04:38]} (20... Kh7 $1 $14) 21. Rb3 $16 {[%emt 0:02:01]} Qd8 {[%emt 0:05:07]} 22. Be5 {[%emt 0:03:02]} ({White should try} 22. Qh5 $1 $16) 22... Kh7 {[%emt 0:05:09]} 23. Qe2 {[%emt 0:03:06]} Bf5 {[%emt 0:03:38]} 24. Rd1 {[%emt 0:03:18]} f6 {[%emt 0:01:31]} (24... Bd6 $14) 25. Bg3 $1 {[%emt 0:03:09] d5 is the strong threat. White has more active pieces.} Bd6 {[%emt 0:05:33]} 26. Bxd6 {[%emt 0:02:25]} Qxd6 {[%emt 0:00:04]} 27. Rc3 {[%emt 0:00:12]} Rfe8 {[%emt 0:04:20]} 28. h3 {[%emt 0:00:40][%cal Bh2h3,Bh3h4][%mdl 32]} Bg6 {[%emt 0:00:13]} 29. h4 {[%emt 0:02:10]} h5 {[%emt 0:01:10]} (29... a4 $11) 30. Qe3 {[%emt 0:04:04]} ({White should play} 30. d5 $1 $14 c5 31. Bb5) 30... a4 $11 {[%emt 0:01:48]} 31. Be2 {[%emt 0:00:40]} Rab8 {[%emt 0:00:28]} 32. Rd2 {[%emt 0:00:20]} Red8 {[%emt 0:00:38]} (32... Bf7 $11) 33. Rc5 $16 {[%emt 0:00:39]} f5 {[%emt 0:00:37] [#]} 34. Qg5 $1 {[%emt 0:00:56]} a3 {[%emt 0:07:23] [#]} (34... Qf6 $16 {might work better.}) 35. b3 $1 $18 {[%emt 0:00:28]} ({Don't take} 35. bxa3 Rb1+ 36. Rd1 Rdb8 $16) 35... Rb4 {[%emt 0:11:41]} (35... Qf6 {keeps fighting.}) 36. Bxh5 {[%emt 0:01:32]} Bxh5 {[%emt 0:00:42]} 37. Qxh5+ {[%emt 0:00:07]} Kg8 {[%emt 0:03:59]} 38. Qxf5 {[%emt 0:12:32]} Rxd4 $2 {[%emt 0:00:00]} (38... Re8 $18 39. Ra5 Qh6) 39. Rxd4 {[%emt 0:00:00]} Qxd4 {[%emt 0:00:00]} 40. Qe6+ {[%emt 0:00:00] Weighted Error Value: White=0.13 (very precise) /Black=0.51} ({Less strong is} 40. Rxc6 e3 $18) 1-0

[Event "FIDE WSCC 65 2022"]
[Site "Assisi"]
[Date "2022.11.24"]
[Round "9.15"]
[White "Frick, Christoph"]
[Black "Sideifzade, Fikret"]
[Result "0-1"]
[ECO "A45"]
[WhiteElo "2118"]
[BlackElo "2391"]
[Annotator "TA"]
[PlyCount "122"]
[EventDate "2022.11.14"]
[EventType "swiss"]
[EventCountry "ITA"]
[SourceTitle "playchess.com"]
[Source "ChessBase"]
[SourceQuality "1"]
[TimeControl "40/5400+30:1800+30"]

{[%evp 9,122,10,50,56,52,50,33,15,45,39,56,51,34,40,47,18,27,27,33,0,43,0,0,0,0,0,15,-77,-73,-85,-68,-106,-117,-131,0,0,0,0,7,18,83,75,171,0,0,0,0,0,-3,-12,0,-10,0,-108,-108,-108,-108,-257,-116,-110,-100,-100,-93,-105,-97,-116,-106,-106,-93,-108,-108,-111,-108,-108,-102,-134,-134,-131,-164,-153,-116,-117,-108,-113,-146,-256,-255,-258,-239,-318,-326,-377,-341,-462,-462,-1110,-1092,-1077,-896,-957,-640,-641,-939,-807,-689,-618,-577,-1604,-1515,-3034,-2197,-29981,-29972,-5133,-5133]} 1. d4 {[%emt 0:00:04]} Nf6 {[%emt 0:00:02]} 2. Bg5 {[%emt 0:00:07]} Ne4 {[%emt 0:06:46]} 3. Bf4 {[%emt 0:00:42]} d5 {[%emt 0:00:04]} 4. e3 {[%emt 0:00:45]} e6 {[%emt 0:02:46]} 5. Bd3 {[%emt 0:04:34]} c5 {[%emt 0:05:48]} 6. Bxe4 {[%emt 0:02:42] A45: Trompowsky Attack.} dxe4 {[%emt 0:00:08]} 7. Nc3 {[%emt 0:00:15]} cxd4 {[%emt 0:30:17]} 8. exd4 {[%emt 0:13:36] [#] White is slightly better.} ({Much worse is} 8. Nxe4 e5 9. Bg3 Qd5 $15) (8. Qxd4 {simplifies} Qxd4 9. exd4 Bb4 10. Nge2) 8... Bd6 $146 {[%emt 0:12:45]} ({Predecessor:} 8... Nc6 9. Nge2 Bb4 10. O-O Bxc3 11. bxc3 O-O 12. c4 e5 13. Bxe5 Nxe5 14. dxe5 Be6 {1-0 (70) Fier,A (2583)-Urazayev,A (2438) Chess.com INT 2022}) 9. Bxd6 {[%emt 0:24:27]} Qxd6 {[%emt 0:00:30]} 10. Nxe4 {[%emt 0:00:11]} Qb4+ {[%emt 0:03:49]} 11. c3 {[%emt 0:02:40]} Qxb2 {[%emt 0:02:08]} 12. Nf3 {[%emt 0:05:34]} O-O {[%emt 0:01:41]} 13. O-O {[%emt 0:01:13]} b6 {[%emt 0:03:16]} 14. a4 {[%emt 0:03:48] Hoping for d5.} Bb7 {[%emt 0:03:43]} (14... Ba6 $5 {[%cal Ra6f1]}) 15. Qd3 {[%emt 0:06:15]} (15. Nfg5 {is interesting.} Ba6 16. Re1 h6 17. Nh3) 15... Bxe4 {[%emt 0:06:48]} 16. Qxe4 {[%emt 0:00:26]} Nd7 {[%emt 0:00:05]} 17. c4 $40 {[%emt 0:04:07][%mdl 128] White has some attack.} Qb4 {[%emt 0:02:03]} 18. Rfb1 {[%emt 0:01:43]} (18. Qc6 $11 {remains equal.} Rfd8 19. Rfb1) 18... Qxc4 $17 {[%emt 0:01:36]} 19. Rc1 {[%emt 0:03:36]} Qb4 {[%emt 0:00:20]} 20. Rc7 {[%emt 0:01:17]} Nf6 {[%emt 0:00:18]} 21. Qb7 {[%emt 0:00:13][%cal Oc7f7] [#]} Nd5 {[%emt 0:04:13]} ({Black should try} 21... Rfb8 $1 $17 {[%cal Rb8b7]} 22. Qa6 Nd5) 22. Rxf7 $11 {[%emt 0:00:28][%mdl 64]} Rxf7 {[%emt 0:00:52]} 23. Qxa8+ {[%emt 0:00:07]} Qf8 {[%emt 0:02:42] Active counter play!} 24. Qc6 {[%emt 0:04:20]} Rf6 {[%emt 0:01:42]} (24... Re7 $11) 25. Re1 {[%emt 0:01:14]} Nf4 {[%emt 0:02:26] [#]} (25... h6 $16) 26. Ng5 $2 {[%emt 0:04:47]} (26. g3 $1 $18 {[%cal Rg3f4]} Ng6 27. Ng5) 26... h6 {[%emt 0:01:51]} 27. Nxe6 {[%emt 0:06:30]} Nxe6 {[%emt 0:00:13]} 28. Rxe6 {[%emt 0:00:08]} Rxf2 {[%emt 0:00:32][%csl Gf8][%cal Rf2f1][%mdl 4096] Endgame KQR-KQR} 29. Re1 {[%emt 0:02:26] Prevents Rf1+.} Rd2 {[%emt 0:01:59]} 30. Qe6+ {[%emt 0:02:25]} ({Reject} 30. Rf1 Qd8 31. Qe6+ Kh8 $17) 30... Kh8 {[%emt 0:00:38]} 31. Rf1 {[%emt 0:01:05] Against Qf2+} (31. Qe3 $11 {keeps the balance.} Ra2 32. d5) 31... Qd8 $17 {[%emt 0:00:22]} 32. d5 {[%emt 0:00:33]} Qxd5 {[%emt 0:00:41][%csl Gd2][%cal Rd5g2]} 33. Qg6 {[%emt 0:00:49]} (33. Qxd5 $17 {is a better defense.} Rxd5 34. Rf7) 33... Qc5+ {[%emt 0:00:54]} (33... Qd4+ $19 34. Kh1 Rd1 35. Qe8+ Kh7) 34. Kh1 {[%emt 0:00:09]} Rd8 {[%emt 0:00:26] Prevents Qe8+. White must now prevent ...Qc4.} 35. h3 {[%emt 0:00:25]} Qd6 {[%emt 0:00:29]} 36. Qh5 {[%emt 0:00:50]} Qe6 {[%emt 0:01:06]} 37. Qh4 {[%emt 0:00:41]} Re8 {[%emt 0:00:33]} 38. Qh5 {[%emt 0:00:46]} Kh7 {[%emt 0:00:11]} 39. Qb5 {[%emt 0:01:09]} Qe5 {[%emt 0:00:40]} 40. Qd7 {[%emt 0:00:26]} Re7 {[%emt 0:00:21] Against Rf7} 41. Qc8 {[%emt 0:32:12]} Qg5 {[%emt 0:32:28]} 42. Kh2 {[%emt 0:00:00]} Re2 {[%emt 0:00:00][%csl Ge2][%cal Rg5g2]} 43. Qc6 {[%emt 0:00:00]} Qe5+ {[%emt 0:00:00]} 44. Kg1 {[%emt 0:00:00]} Qd4+ {[%emt 0:00:00]} 45. Kh2 {[%emt 0:00:00]} Qe4 {[%emt 0:00:00]} 46. Qxe4+ {[%emt 0:00:00]} Rxe4 {[%emt 0:00:00] KR-KR} 47. Ra1 {[%emt 0:00:00]} (47. a5 $17) 47... a5 $19 {[%emt 0:00:00]} 48. Kg3 {[%emt 0:00:00]} Kg6 {[%emt 0:00:00]} 49. Kf3 {[%emt 0:00:00]} Kf5 {[%emt 0:00:00]} 50. g4+ {[%emt 0:00:00]} Ke5 {[%emt 0:00:00]} 51. h4 {[%emt 0:00:00]} g5 {[%emt 0:00:00]} 52. hxg5 {[%emt 0:00:00]} (52. Kg3 $142 Re3+ 53. Kg2) 52... hxg5 {[%emt 0:00:00]} 53. Rb1 {[%emt 0:00:00]} Rf4+ {[%emt 0:00:00]} ({Not} 53... Rxa4 54. Rb5+ Kd4 55. Rxb6 $19) 54. Kg3 {[%emt 0:00:00]} Rb4 {[%emt 0:00:00]} 55. Rf1 {[%emt 0:00:00]} Rxa4 {[%emt 0:00:00]} 56. Rf5+ {[%emt 0:00:00]} Kd6 {[%emt 0:00:00]} 57. Rxg5 {[%emt 0:00:00]} Ra1 {[%emt 0:00:00] Strongly threatening ...a4.} 58. Rf5 {[%emt 0:02:42]} a4 {[%emt 0:00:00][%cal Ba5a4,Ba4a3,Ba3a2][%mdl 32] ...a3 is the strong threat.} 59. g5 {[%emt 0:00:21]} a3 {[%emt 0:01:21] ( -> ...a2)} 60. Kg2 {[%emt 0:00:37]} a2 {[%emt 0:01:06]} 61. Rf2 {[%emt 0:00:11] [#]} Rg1+ $3 {[%emt 0:00:34][%mdl 512] Weighted Error Value: White=0.55/Black=0.21 (precise)} 0-1